Workbook

Sheet Menu
A1: Choose a Month to Switch to That Sales Report
B3: MenuMike
B4: January
B5: February
B6: March
B7: April
B8: May
B9: June
B10: July
B11: August
B12: September
B13: October
B14: November
B15: December

Sheet MenuMike
A1: Choose a Month to Switch to That Sales Report | G1: Back to Menu
B3: January
B4: February
B5: March
B6: April
B7: May
B8: June
B9: July
B10: August
B11: September
B12: October
B13: November
B14: December

Sheet January
A1: Sales Report | G1: Back to Menu
A2: January
A4: Region | B4: Week 1 | C4: Week 2 | D4: Week 3 | E4: Week 4 | F4: Week 5 | G4: Total
A5: East | B5: 1368 | C5: 3997 | D5: 1049 | E5: 2641 | F5: 1328 | G5: =SUM(B5:F5) -> 10383
A6: Central | B6: 4070 | C6: 3777 | D6: 4709 | E6: 1221 | F6: 1289 | G6: =SUM(B6:F6) -> 15066
A7: West | B7: 1769 | C7: 3057 | D7: 1396 | E7: 3181 | F7: 1508 | G7: =SUM(B7:F7) -> 10911
A8: Total | B8: =SUM(B5:B7) -> 7207 | C8: =SUM(C5:C7) -> 10831 | D8: =SUM(D5:D7) -> 7154 | E8: =SUM(E5:E7) -> 7043 | F8: =SUM(F5:F7) -> 4125 | G8: =SUM(B8:F8) -> 36360
A11: Back To Menu

Sheet February
A1: Sales Report | G1: Back to Menu
A2: February
A4: Region | B4: Week 1 | C4: Week 2 | D4: Week 3 | E4: Week 4 | F4: Week 5 | G4: Total
A5: East | B5: 1916 | C5: 2654 | D5: 4153 | E5: 4683 | F5: 1125 | G5: =SUM(B5:F5) -> 14531
A6: Central | B6: 3990 | C6: 4025 | D6: 1347 | E6: 1267 | F6: 2117 | G6: =SUM(B6:F6) -> 12746
A7: West | B7: 2098 | C7: 4468 | D7: 2252 | E7: 2826 | F7: 3488 | G7: =SUM(B7:F7) -> 15132
A8: Total | B8: =SUM(B5:B7) -> 8004 | C8: =SUM(C5:C7) -> 11147 | D8: =SUM(D5:D7) -> 7752 | E8: =SUM(E5:E7) -> 8776 | F8: =SUM(F5:F7) -> 6730 | G8: =SUM(B8:F8) -> 42409
A11: Back To Menu

Sheet March
A1: Sales Report | G1: Back to Menu
A2: March
A4: Region | B4: Week 1 | C4: Week 2 | D4: Week 3 | E4: Week 4 | F4: Week 5 | G4: Total
A5: East | B5: 4719 | C5: 2440 | D5: 1050 | E5: 1949 | F5: 3501 | G5: =SUM(B5:F5) -> 13659
A6: Central | B6: 3120 | C6: 4703 | D6: 2529 | E6: 3366 | F6: 2812 | G6: =SUM(B6:F6) -> 16530
A7: West | B7: 4681 | C7: 2867 | D7: 1757 | E7: 2866 | F7: 4931 | G7: =SUM(B7:F7) -> 17102
A8: Total | B8: =SUM(B5:B7) -> 12520 | C8: =SUM(C5:C7) -> 10010 | D8: =SUM(D5:D7) -> 5336 | E8: =SUM(E5:E7) -> 8181 | F8: =SUM(F5:F7) -> 11244 | G8: =SUM(B8:F8) -> 47291
A11: Back To Menu

Sheet April
A1: Sales Report | G1: Back to Menu
A2: April
A4: Region | B4: Week 1 | C4: Week 2 | D4: Week 3 | E4: Week 4 | F4: Week 5 | G4: Total
A5: East | B5: 1831 | C5: 2599 | D5: 2584 | E5: 4956 | F5: 2367 | G5: =SUM(B5:F5) -> 14337
A6: Central | B6: 4713 | C6: 2932 | D6: 4339 | E6: 1123 | F6: 4172 | G6: =SUM(B6:F6) -> 17279
A7: West | B7: 3964 | C7: 4020 | D7: 4323 | E7: 2107 | F7: 3685 | G7: =SUM(B7:F7) -> 18099
A8: Total | B8: =SUM(B5:B7) -> 10508 | C8: =SUM(C5:C7) -> 9551 | D8: =SUM(D5:D7) -> 11246 | E8: =SUM(E5:E7) -> 8186 | F8: =SUM(F5:F7) -> 10224 | G8: =SUM(B8:F8) -> 49715
A11: Back To Menu

Sheet May
A1: Sales Report | G1: Back to Menu
A2: May
A4: Region | B4: Week 1 | C4: Week 2 | D4: Week 3 | E4: Week 4 | F4: Week 5 | G4: Total
A5: East | B5: 2068 | C5: 3958 | D5: 2475 | E5: 3934 | F5: 2946 | G5: =SUM(B5:F5) -> 15381
A6: Central | B6: 1558 | C6: 1083 | D6: 2510 | E6: 1197 | F6: 4036 | G6: =SUM(B6:F6) -> 10384
A7: West | B7: 2613 | C7: 1743 | D7: 2811 | E7: 2856 | F7: 1696 | G7: =SUM(B7:F7) -> 11719
A8: Total | B8: =SUM(B5:B7) -> 6239 | C8: =SUM(C5:C7) -> 6784 | D8: =SUM(D5:D7) -> 7796 | E8: =SUM(E5:E7) -> 7987 | F8: =SUM(F5:F7) -> 8678 | G8: =SUM(B8:F8) -> 37484
A11: Back To Menu

Sheet June
A1: Sales Report | G1: Back to Menu
A2: June
A4: Region | B4: Week 1 | C4: Week 2 | D4: Week 3 | E4: Week 4 | F4: Week 5 | G4: Total
A5: East | B5: 3427 | C5: 3967 | D5: 2208 | E5: 3582 | F5: 1862 | G5: =SUM(B5:F5) -> 15046
A6: Central | B6: 1133 | C6: 3847 | D6: 3643 | E6: 3579 | F6: 3399 | G6: =SUM(B6:F6) -> 15601
A7: West | B7: 4397 | C7: 3311 | D7: 1311 | E7: 2027 | F7: 2673 | G7: =SUM(B7:F7) -> 13719
A8: Total | B8: =SUM(B5:B7) -> 8957 | C8: =SUM(C5:C7) -> 11125 | D8: =SUM(D5:D7) -> 7162 | E8: =SUM(E5:E7) -> 9188 | F8: =SUM(F5:F7) -> 7934 | G8: =SUM(B8:F8) -> 44366
A11: Back To Menu

Sheet July
A1: Sales Report | G1: Back to Menu
A2: July
A4: Region | B4: Week 1 | C4: Week 2 | D4: Week 3 | E4: Week 4 | F4: Week 5 | G4: Total
A5: East | B5: 1728 | C5: 3852 | D5: 2481 | E5: 2757 | F5: 3723 | G5: =SUM(B5:F5) -> 14541
A6: Central | B6: 1416 | C6: 1437 | D6: 3843 | E6: 3381 | F6: 1557 | G6: =SUM(B6:F6) -> 11634
A7: West | B7: 2118 | C7: 3216 | D7: 4445 | E7: 2547 | F7: 2209 | G7: =SUM(B7:F7) -> 14535
A8: Total | B8: =SUM(B5:B7) -> 5262 | C8: =SUM(C5:C7) -> 8505 | D8: =SUM(D5:D7) -> 10769 | E8: =SUM(E5:E7) -> 8685 | F8: =SUM(F5:F7) -> 7489 | G8: =SUM(B8:F8) -> 40710
A11: Back To Menu

Sheet August
A1: Sales Report | G1: Back to Menu
A2: August
A4: Region | B4: Week 1 | C4: Week 2 | D4: Week 3 | E4: Week 4 | F4: Week 5 | G4: Total
A5: East | B5: 1823 | C5: 3187 | D5: 1092 | E5: 2156 | F5: 1819 | G5: =SUM(B5:F5) -> 10077
A6: Central | B6: 3513 | C6: 3878 | D6: 1095 | E6: 3958 | F6: 1522 | G6: =SUM(B6:F6) -> 13966
A7: West | B7: 2281 | C7: 2460 | D7: 3143 | E7: 1329 | F7: 1927 | G7: =SUM(B7:F7) -> 11140
A8: Total | B8: =SUM(B5:B7) -> 7617 | C8: =SUM(C5:C7) -> 9525 | D8: =SUM(D5:D7) -> 5330 | E8: =SUM(E5:E7) -> 7443 | F8: =SUM(F5:F7) -> 5268 | G8: =SUM(B8:F8) -> 35183
A11: Back To Menu

Sheet September
A1: Sales Report | G1: Back to Menu
A2: September
A4: Region | B4: Week 1 | C4: Week 2 | D4: Week 3 | E4: Week 4 | F4: Week 5 | G4: Total
A5: East | B5: 3399 | C5: 1543 | D5: 3231 | E5: 4397 | F5: 3849 | G5: =SUM(B5:F5) -> 16419
A6: Central | B6: 4847 | C6: 4575 | D6: 3296 | E6: 2238 | F6: 4741 | G6: =SUM(B6:F6) -> 19697
A7: West | B7: 4423 | C7: 2222 | D7: 4418 | E7: 2873 | F7: 3170 | G7: =SUM(B7:F7) -> 17106
A8: Total | B8: =SUM(B5:B7) -> 12669 | C8: =SUM(C5:C7) -> 8340 | D8: =SUM(D5:D7) -> 10945 | E8: =SUM(E5:E7) -> 9508 | F8: =SUM(F5:F7) -> 11760 | G8: =SUM(B8:F8) -> 53222
A11: Back To Menu

Sheet October
A1: Sales Report | G1: Back to Menu
A2: October
A4: Region | B4: Week 1 | C4: Week 2 | D4: Week 3 | E4: Week 4 | F4: Week 5 | G4: Total
A5: East | B5: 2758 | C5: 1160 | D5: 1532 | E5: 1151 | F5: 3815 | G5: =SUM(B5:F5) -> 10416
A6: Central | B6: 3601 | C6: 4977 | D6: 3814 | E6: 2929 | F6: 1280 | G6: =SUM(B6:F6) -> 16601
A7: West | B7: 1366 | C7: 2585 | D7: 1030 | E7: 1013 | F7: 3417 | G7: =SUM(B7:F7) -> 9411
A8: Total | B8: =SUM(B5:B7) -> 7725 | C8: =SUM(C5:C7) -> 8722 | D8: =SUM(D5:D7) -> 6376 | E8: =SUM(E5:E7) -> 5093 | F8: =SUM(F5:F7) -> 8512 | G8: =SUM(B8:F8) -> 36428
A11: Back To Menu

Sheet November
A1: Sales Report | G1: Back to Menu
A2: November
A4: Region | B4: Week 1 | C4: Week 2 | D4: Week 3 | E4: Week 4 | F4: Week 5 | G4: Total
A5: East | B5: 3706 | C5: 1174 | D5: 4266 | E5: 2570 | F5: 1102 | G5: =SUM(B5:F5) -> 12818
A6: Central | B6: 4967 | C6: 1001 | D6: 1442 | E6: 1822 | F6: 1127 | G6: =SUM(B6:F6) -> 10359
A7: West | B7: 3363 | C7: 3334 | D7: 4467 | E7: 4171 | F7: 2238 | G7: =SUM(B7:F7) -> 17573
A8: Total | B8: =SUM(B5:B7) -> 12036 | C8: =SUM(C5:C7) -> 5509 | D8: =SUM(D5:D7) -> 10175 | E8: =SUM(E5:E7) -> 8563 | F8: =SUM(F5:F7) -> 4467 | G8: =SUM(B8:F8) -> 40750
A11: Back To Menu

Sheet December
A1: Sales Report | G1: Back to Menu
A2: December
A4: Region | B4: Week 1 | C4: Week 2 | D4: Week 3 | E4: Week 4 | F4: Week 5 | G4: Total
A5: East | B5: 4604 | C5: 2736 | D5: 3049 | E5: 4342 | F5: 2967 | G5: =SUM(B5:F5) -> 17698
A6: Central | B6: 4706 | C6: 3110 | D6: 3221 | E6: 4835 | F6: 4881 | G6: =SUM(B6:F6) -> 20753
A7: West | B7: 3449 | C7: 1811 | D7: 4182 | E7: 1869 | F7: 4708 | G7: =SUM(B7:F7) -> 16019
A8: Total | B8: =SUM(B5:B7) -> 12759 | C8: =SUM(C5:C7) -> 7657 | D8: =SUM(D5:D7) -> 10452 | E8: =SUM(E5:E7) -> 11046 | F8: =SUM(F5:F7) -> 12556 | G8: =SUM(B8:F8) -> 54470
A11: Back To Menu
